[Event "Titled Tuesday Blitz February 28 Early 2023"]
[White "Gatterer, Florian"]
[Black "Curtis, John"]
[WhiteFideId "811688"]
[BlackFideId "3200256"]
[WhiteElo "2221"]
[BlackElo "2203"]
[Result "1/2-1/2"]
[Round "10"]
[TimeControl "180+2"]
[Date "2023.02.28"]
[WhiteClock "0:02:32"]
[BlackClock "0:02:15"]

1. b3 {[%clk 0:03:00]}  c5 {[%clk 0:02:55]} 2. Bb2 {[%clk 0:02:59]}  Nc6 {[%clk 0:02:55]} 3. e3 {[%clk 0:02:57]}  a6 {[%clk 0:02:53]} 4. Nf3 {[%clk 0:02:56]}  d5 {[%clk 0:02:51]} 5. d4 {[%clk 0:02:56]}  cxd4 {[%clk 0:02:47]} 6. Nxd4 {[%clk 0:02:51]}  Nf6 {[%clk 0:02:36]} 7. Be2 {[%clk 0:02:48]}  Nxd4 {[%clk 0:02:26]} 8. Bxd4 {[%clk 0:02:47]}  e6 {[%clk 0:02:22]} 9. O-O {[%clk 0:02:46]}  Bd7 {[%clk 0:02:22]} 10. Nd2 {[%clk 0:02:46]}  Bc6 {[%clk 0:02:22]} 11. c4 {[%clk 0:02:38]}  Be7 {[%clk 0:02:17]} 12. Bf3 {[%clk 0:02:33]}  Rc8 {[%clk 0:02:15]} 13. Rc1 {[%clk 0:02:32]} 1/2-1/2


[Site "https://www.chess.com"]

[Event "Titled Tuesday Blitz February 28 Early 2023"]
[White "Sovetbekova, Nurai"]
[Black "lisjakzlatko1"]
[WhiteFideId "13801910"]
[WhiteElo "1857"]
[BlackElo "2161"]
[Result "1-0"]
[Round "10"]
[TimeControl "180+2"]
[Date "2023.02.28"]
[WhiteClock "0:00:15"]
[BlackClock "0:00:03"]

1. d4 {[%clk 0:03:00]}  d6 {[%clk 0:02:59]} 2. c4 {[%clk 0:02:59]}  e5 {[%clk 0:02:58]} 3. Nc3 {[%clk 0:02:58]}  Nd7 {[%clk 0:02:56]} 4. e4 {[%clk 0:02:57]}  Ngf6 {[%clk 0:02:51]} 5. Nf3 {[%clk 0:02:56]}  Be7 {[%clk 0:02:49]} 6. Be2 {[%clk 0:02:54]}  c6 {[%clk 0:02:50]} 7. O-O {[%clk 0:02:54]}  O-O {[%clk 0:02:50]} 8. h3 {[%clk 0:02:52]}  Re8 {[%clk 0:02:38]} 9. Be3 {[%clk 0:02:51]}  Bf8 {[%clk 0:02:37]} 10. Qd2 {[%clk 0:02:49]}  exd4 {[%clk 0:02:31]} 11. Qxd4 {[%clk 0:02:27]}  Nc5 {[%clk 0:02:24]} 12. e5 {[%clk 0:02:23]}  dxe5 {[%clk 0:02:09]} 13. Qxd8 {[%clk 0:02:22]}  Rxd8 {[%clk 0:02:09]} 14. Nxe5 {[%clk 0:02:22]}  a5 {[%clk 0:01:50]} 15. Rad1 {[%clk 0:02:08]}  Re8 {[%clk 0:01:27]} 16. Nd3 {[%clk 0:01:59]}  Nce4 {[%clk 0:01:12]} 17. Nxe4 {[%clk 0:01:54]}  Nxe4 {[%clk 0:01:12]} 18. Bf3 {[%clk 0:01:54]}  a4 {[%clk 0:01:07]} 19. Rfe1 {[%clk 0:01:51]}  Bf5 {[%clk 0:01:07]} 20. Bf4 {[%clk 0:01:39]}  a3 {[%clk 0:01:03]} 21. bxa3 {[%clk 0:01:23]}  Bxa3 {[%clk 0:00:57]} 22. Bxe4 {[%clk 0:01:00]}  Bxe4 {[%clk 0:00:51]} 23. Ne5 {[%clk 0:00:55]}  Bc2 {[%clk 0:00:43]} 24. Rd7 {[%clk 0:00:47]}  f6 {[%clk 0:00:43]} 25. Nf3 {[%clk 0:00:44]}  Rxe1+ {[%clk 0:00:26]} 26. Nxe1 {[%clk 0:00:45]}  Bf5 {[%clk 0:00:26]} 27. Rxb7 {[%clk 0:00:44]}  Bc5 {[%clk 0:00:26]} 28. Rb2 {[%clk 0:00:33]}  Bd4 {[%clk 0:00:25]} 29. Re2 {[%clk 0:00:33]}  c5 {[%clk 0:00:26]} 30. Be3 {[%clk 0:00:29]}  Bb1 {[%clk 0:00:25]} 31. Nf3 {[%clk 0:00:19]}  Bxe3 {[%clk 0:00:22]} 32. Rxe3 {[%clk 0:00:19]}  Rxa2 {[%clk 0:00:20]} 33. Rb3 {[%clk 0:00:18]}  Be4 {[%clk 0:00:17]} 34. Rb5 {[%clk 0:00:17]}  Bxf3 {[%clk 0:00:15]} 35. gxf3 {[%clk 0:00:17]}  Ra1+ {[%clk 0:00:12]} 36. Kg2 {[%clk 0:00:17]}  Kf7 {[%clk 0:00:10]} 37. Rxc5 {[%clk 0:00:18]}  Kg6 {[%clk 0:00:09]} 38. Rc7 {[%clk 0:00:18]}  h5 {[%clk 0:00:08]} 39. c5 {[%clk 0:00:17]}  h4 {[%clk 0:00:09]} 40. c6 {[%clk 0:00:16]}  Rc1 {[%clk 0:00:07]} 41. f4 {[%clk 0:00:16]}  Rc2 {[%clk 0:00:07]} 42. Kf3 {[%clk 0:00:16]}  Rc3+ {[%clk 0:00:07]} 43. Kg4 {[%clk 0:00:15]}  f5+ {[%clk 0:00:06]} 44. Kxh4 {[%clk 0:00:15]}  Rf3 {[%clk 0:00:05]} 45. Rc8 {[%clk 0:00:14]}  Rxf4+ {[%clk 0:00:04]} 46. Kg3 {[%clk 0:00:15]}  Rc4 {[%clk 0:00:03]} 47. c7 {[%clk 0:00:15]} 1-0


[Site "https://www.chess.com"]

[Event "Titled Tuesday Blitz February 28 Early 2023"]
[White "Jesusesmifuerza"]
[Black "mohsengabr2002"]
[WhiteElo "2021"]
[BlackElo "2393"]
[Result "1/2-1/2"]
[Round "10"]
[TimeControl "180+2"]
[Date "2023.02.28"]
[WhiteClock "0:00:15"]
[BlackClock "0:00:29"]

1. d4 {[%clk 0:03:00]}  d5 {[%clk 0:02:50]} 2. Nc3 {[%clk 0:03:00]}  Nf6 {[%clk 0:02:48]} 3. Bf4 {[%clk 0:03:00]}  c6 {[%clk 0:02:48]} 4. e3 {[%clk 0:02:58]}  Bf5 {[%clk 0:02:46]} 5. Bd3 {[%clk 0:02:59]}  Bxd3 {[%clk 0:02:45]} 6. cxd3 {[%clk 0:03:00]}  Nbd7 {[%clk 0:02:38]} 7. Nf3 {[%clk 0:03:00]}  e6 {[%clk 0:02:38]} 8. O-O {[%clk 0:02:59]}  Be7 {[%clk 0:02:36]} 9. Rc1 {[%clk 0:02:58]}  O-O {[%clk 0:02:35]} 10. a3 {[%clk 0:02:58]}  Nh5 {[%clk 0:02:35]} 11. Be5 {[%clk 0:02:49]}  f6 {[%clk 0:02:31]} 12. Bg3 {[%clk 0:02:49]}  Nxg3 {[%clk 0:02:31]} 13. hxg3 {[%clk 0:02:49]}  e5 {[%clk 0:02:30]} 14. dxe5 {[%clk 0:02:47]}  fxe5 {[%clk 0:02:30]} 15. d4 {[%clk 0:02:46]}  e4 {[%clk 0:02:30]} 16. Nd2 {[%clk 0:02:44]}  Bd6 {[%clk 0:02:26]} 17. Qg4 {[%clk 0:02:38]}  Rf6 {[%clk 0:02:24]} 18. b4 {[%clk 0:02:13]}  Rg6 {[%clk 0:01:58]} 19. Qh4 {[%clk 0:02:02]}  Be7 {[%clk 0:01:53]} 20. Qh3 {[%clk 0:01:59]}  Rh6 {[%clk 0:01:48]} 21. Qg4 {[%clk 0:01:56]}  Bd6 {[%clk 0:00:19]} 22. f4 {[%clk 0:01:23]}  Nf6 {[%clk 0:00:20]} 23. Qe6+ {[%clk 0:01:22]}  Kh8 {[%clk 0:00:19]} 24. Kf2 {[%clk 0:01:19]}  Rg6 {[%clk 0:00:18]} 25. Qh3 {[%clk 0:01:02]}  Ng4+ {[%clk 0:00:19]} 26. Ke2 {[%clk 0:01:01]}  Qd7 {[%clk 0:00:20]} 27. Qh1 {[%clk 0:00:41]}  Rh6 {[%clk 0:00:20]} 28. Qg1 {[%clk 0:00:39]}  Nh2 {[%clk 0:00:19]} 29. Rf2 {[%clk 0:00:36]}  Qg4+ {[%clk 0:00:20]} 30. Ke1 {[%clk 0:00:35]}  Qxg3 {[%clk 0:00:20]} 31. Nf1 {[%clk 0:00:34]}  Nxf1 {[%clk 0:00:19]} 32. Qxf1 {[%clk 0:00:34]}  Rf8 {[%clk 0:00:19]} 33. Ke2 {[%clk 0:00:33]}  Rff6 {[%clk 0:00:19]} 34. Qg1 {[%clk 0:00:31]}  Rh2 {[%clk 0:00:19]} 35. Rcf1 {[%clk 0:00:31]}  Rfh6 {[%clk 0:00:20]} 36. Kd1 {[%clk 0:00:29]}  Rh1 {[%clk 0:00:19]} 37. Ne2 {[%clk 0:00:23]}  Rxg1 {[%clk 0:00:19]} 38. Nxg3 {[%clk 0:00:22]}  Rxf1+ {[%clk 0:00:19]} 39. Nxf1 {[%clk 0:00:21]}  Rh2 {[%clk 0:00:20]} 40. Ke2 {[%clk 0:00:20]}  Rh1 {[%clk 0:00:20]} 41. g4 {[%clk 0:00:19]}  Rh6 {[%clk 0:00:21]} 42. Rg2 {[%clk 0:00:19]}  Rh3 {[%clk 0:00:22]} 43. Ng3 {[%clk 0:00:19]}  g5 {[%clk 0:00:22]} 44. Nf5 {[%clk 0:00:19]}  Bc7 {[%clk 0:00:22]} 45. fxg5 {[%clk 0:00:19]}  Kg8 {[%clk 0:00:22]} 46. Ne7+ {[%clk 0:00:19]}  Kf7 {[%clk 0:00:22]} 47. Nf5 {[%clk 0:00:20]}  Kg6 {[%clk 0:00:23]} 48. Ne7+ {[%clk 0:00:18]}  Kxg5 {[%clk 0:00:24]} 49. Nf5 {[%clk 0:00:18]}  h5 {[%clk 0:00:24]} 50. Ng7 {[%clk 0:00:13]}  hxg4 {[%clk 0:00:23]} 51. Ne6+ {[%clk 0:00:13]}  Kh4 {[%clk 0:00:22]} 52. Nxc7 {[%clk 0:00:14]}  g3 {[%clk 0:00:23]} 53. Kf1 {[%clk 0:00:13]}  Rh2 {[%clk 0:00:24]} 54. Ne6 {[%clk 0:00:13]}  Kh3 {[%clk 0:00:24]} 55. Nf4+ {[%clk 0:00:13]}  Kg4 {[%clk 0:00:24]} 56. Rxh2 {[%clk 0:00:13]}  gxh2 {[%clk 0:00:25]} 57. Kg2 {[%clk 0:00:13]}  h1=Q+ {[%clk 0:00:24]} 58. Kxh1 {[%clk 0:00:13]}  Kf3 {[%clk 0:00:25]} 59. Ng2 {[%clk 0:00:12]}  Kf2 {[%clk 0:00:25]} 60. Kh2 {[%clk 0:00:13]}  Kf3 {[%clk 0:00:26]} 61. Kh3 {[%clk 0:00:13]}  Kf2 {[%clk 0:00:27]} 62. Kh2 {[%clk 0:00:13]}  Kf3 {[%clk 0:00:28]} 63. Kh3 {[%clk 0:00:14]}  Kf2 {[%clk 0:00:29]} 64. Kh2 {[%clk 0:00:15]} 1/2-1/2


[Site "https://www.chess.com"]

[Event "Titled Tuesday Blitz February 28 Early 2023"]
[White "Jenkins, Drake"]
[Black "Hon, Eric"]
[WhiteFideId "2022397"]
[BlackFideId "2097117"]
[WhiteElo "2331"]
[BlackElo "1918"]
[Result "0-1"]
[Round "10"]
[TimeControl "180+2"]
[Date "2023.02.28"]
[WhiteClock "0:00:02"]
[BlackClock "0:00:11"]

1. Nf3 {[%clk 0:02:58]}  d5 {[%clk 0:02:58]} 2. c4 {[%clk 0:02:58]}  d4 {[%clk 0:02:58]} 3. e3 {[%clk 0:02:58]}  c5 {[%clk 0:02:57]} 4. b4 {[%clk 0:02:58]}  b6 {[%clk 0:02:54]} 5. bxc5 {[%clk 0:02:56]}  bxc5 {[%clk 0:02:55]} 6. exd4 {[%clk 0:02:52]}  cxd4 {[%clk 0:02:54]} 7. g3 {[%clk 0:02:52]}  Nc6 {[%clk 0:02:52]} 8. Bg2 {[%clk 0:02:52]}  Bd7 {[%clk 0:02:52]} 9. O-O {[%clk 0:02:51]}  Nf6 {[%clk 0:02:52]} 10. d3 {[%clk 0:02:51]}  e5 {[%clk 0:02:50]} 11. Re1 {[%clk 0:02:50]}  Bd6 {[%clk 0:02:51]} 12. c5 {[%clk 0:02:50]}  Bc7 {[%clk 0:02:50]} 13. Na3 {[%clk 0:02:47]}  O-O {[%clk 0:02:48]} 14. Nc4 {[%clk 0:02:48]}  Re8 {[%clk 0:02:47]} 15. Ba3 {[%clk 0:02:43]}  Rb8 {[%clk 0:02:46]} 16. Rb1 {[%clk 0:02:39]}  Nd5 {[%clk 0:02:43]} 17. Qc2 {[%clk 0:02:27]}  Nc3 {[%clk 0:02:41]} 18. Rxb8 {[%clk 0:02:26]}  Qxb8 {[%clk 0:02:38]} 19. Ng5 {[%clk 0:02:10]}  h6 {[%clk 0:02:27]} 20. Ne4 {[%clk 0:02:10]}  Nb5 {[%clk 0:02:10]} 21. Rb1 {[%clk 0:01:43]}  Nxa3 {[%clk 0:02:08]} 22. Nxa3 {[%clk 0:01:42]}  Qc8 {[%clk 0:02:04]} 23. Nb5 {[%clk 0:01:41]}  Re6 {[%clk 0:01:31]} 24. Nxc7 {[%clk 0:01:27]}  Qxc7 {[%clk 0:01:31]} 25. Nd6 {[%clk 0:01:27]}  Nd8 {[%clk 0:01:17]} 26. Rb2 {[%clk 0:01:04]}  g6 {[%clk 0:01:06]} 27. h4 {[%clk 0:01:03]}  Kg7 {[%clk 0:01:05]} 28. Bf3 {[%clk 0:00:40]}  Bc6 {[%clk 0:00:59]} 29. Bg4 {[%clk 0:00:28]}  f5 {[%clk 0:00:50]} 30. Be2 {[%clk 0:00:27]}  Nf7 {[%clk 0:00:40]} 31. Qb3 {[%clk 0:00:17]}  Rf6 {[%clk 0:00:28]} 32. Nc4 {[%clk 0:00:11]}  e4 {[%clk 0:00:26]} 33. Qb8 {[%clk 0:00:11]}  Qxb8 {[%clk 0:00:22]} 34. Rxb8 {[%clk 0:00:11]}  exd3 {[%clk 0:00:18]} 35. Bxd3 {[%clk 0:00:11]}  Re6 {[%clk 0:00:17]} 36. Kf1 {[%clk 0:00:10]}  Bd5 {[%clk 0:00:15]} 37. Rc8 {[%clk 0:00:05]}  Kf6 {[%clk 0:00:15]} 38. Rf8 {[%clk 0:00:04]}  Ke7 {[%clk 0:00:14]} 39. Rg8 {[%clk 0:00:04]}  Kf6 {[%clk 0:00:14]} 40. Rf8 {[%clk 0:00:04]}  Rc6 {[%clk 0:00:13]} 41. Nd6 {[%clk 0:00:03]}  Rxc5 {[%clk 0:00:13]} 42. Nxf7 {[%clk 0:00:03]}  Bxf7 {[%clk 0:00:13]} 43. h5 {[%clk 0:00:03]}  g5 {[%clk 0:00:13]} 44. Kg2 {[%clk 0:00:02]}  Kg7 {[%clk 0:00:13]} 45. Rd8 {[%clk 0:00:02]}  Bxh5 {[%clk 0:00:13]} 46. Rd7+ {[%clk 0:00:01]}  Bf7 {[%clk 0:00:13]} 47. Rxa7 {[%clk 0:00:02]}  Kf6 {[%clk 0:00:13]} 48. Ba6 {[%clk 0:00:01]}  Ra5 {[%clk 0:00:11]} 49. Bb7 {[%clk 0:00:02]}  Rxa7 {[%clk 0:00:11]} 0-1


[Site "https://www.chess.com"]

[Event "Titled Tuesday Blitz February 28 Early 2023"]
[White "Winkels, Marcel"]
[Black "Zaichenko, Daria"]
[WhiteFideId "1003887"]
[BlackFideId "4197453"]
[WhiteElo "1900"]
[BlackElo "2039"]
[Result "1-0"]
[Round "10"]
[TimeControl "180+2"]
[Date "2023.02.28"]
[WhiteClock "0:01:18"]
[BlackClock "0:01:09"]

1. e4 {[%clk 0:03:00]}  c5 {[%clk 0:02:59]} 2. d4 {[%clk 0:02:59]}  cxd4 {[%clk 0:02:59]} 3. c3 {[%clk 0:02:59]}  d5 {[%clk 0:02:56]} 4. exd5 {[%clk 0:02:52]}  Qxd5 {[%clk 0:02:56]} 5. Nf3 {[%clk 0:02:52]}  Bg4 {[%clk 0:02:54]} 6. cxd4 {[%clk 0:02:49]}  e6 {[%clk 0:02:42]} 7. Nc3 {[%clk 0:02:47]}  Bb4 {[%clk 0:02:39]} 8. Qa4+ {[%clk 0:02:39]}  Nc6 {[%clk 0:02:38]} 9. Ne5 {[%clk 0:02:39]}  Qe4+ {[%clk 0:02:21]} 10. Be3 {[%clk 0:02:28]}  Ne7 {[%clk 0:02:09]} 11. Bb5 {[%clk 0:02:17]}  O-O {[%clk 0:01:54]} 12. O-O {[%clk 0:02:07]}  Bxc3 {[%clk 0:01:50]} 13. bxc3 {[%clk 0:02:06]}  Nxe5 {[%clk 0:01:49]} 14. dxe5 {[%clk 0:02:03]}  Qxe5 {[%clk 0:01:47]} 15. Qxg4 {[%clk 0:01:51]}  Qxb5 {[%clk 0:01:37]} 16. Bd4 {[%clk 0:01:50]}  Nf5 {[%clk 0:01:31]} 17. Rab1 {[%clk 0:01:44]}  Qc6 {[%clk 0:01:29]} 18. Be5 {[%clk 0:01:43]}  f6 {[%clk 0:01:23]} 19. Bd4 {[%clk 0:01:37]}  Nxd4 {[%clk 0:01:22]} 20. cxd4 {[%clk 0:01:31]}  Rfe8 {[%clk 0:01:19]} 21. Rfc1 {[%clk 0:01:28]}  Qd5 {[%clk 0:01:15]} 22. Rc7 {[%clk 0:01:25]}  g6 {[%clk 0:01:14]} 23. Qh4 {[%clk 0:01:20]}  h5 {[%clk 0:01:09]} 24. Qxf6 {[%clk 0:01:18]} 1-0


[Site "https://www.chess.com"]

[Event "Titled Tuesday Blitz February 28 Early 2023"]
[White "Ricaurte Lopez, Juan Carlos"]
[Black "Kohler, Aran"]
[WhiteFideId "3600327"]
[BlackFideId "1002856"]
[WhiteElo "2209"]
[BlackElo "2231"]
[Result "0-1"]
[Round "10"]
[TimeControl "180+2"]
[Date "2023.02.28"]
[WhiteClock "0:00:01"]
[BlackClock "0:01:12"]

1. e4 {[%clk 0:02:50]}  c6 {[%clk 0:02:55]} 2. d4 {[%clk 0:02:50]}  d5 {[%clk 0:02:56]} 3. exd5 {[%clk 0:02:50]}  cxd5 {[%clk 0:02:56]} 4. c4 {[%clk 0:02:50]}  a6 {[%clk 0:02:53]} 5. Nc3 {[%clk 0:02:48]}  dxc4 {[%clk 0:02:52]} 6. Bxc4 {[%clk 0:02:46]}  Nf6 {[%clk 0:02:51]} 7. Nf3 {[%clk 0:02:44]}  e6 {[%clk 0:02:52]} 8. O-O {[%clk 0:02:40]}  Be7 {[%clk 0:02:52]} 9. Re1 {[%clk 0:02:36]}  O-O {[%clk 0:02:51]} 10. Ne5 {[%clk 0:02:35]}  b5 {[%clk 0:02:50]} 11. Bb3 {[%clk 0:02:33]}  Bb7 {[%clk 0:02:51]} 12. Bg5 {[%clk 0:02:29]}  h6 {[%clk 0:02:49]} 13. Bh4 {[%clk 0:02:28]}  Nbd7 {[%clk 0:02:48]} 14. Qe2 {[%clk 0:02:20]}  b4 {[%clk 0:02:43]} 15. Na4 {[%clk 0:02:11]}  Nxe5 {[%clk 0:02:29]} 16. dxe5 {[%clk 0:01:59]}  Nd5 {[%clk 0:02:28]} 17. Bxe7 {[%clk 0:01:59]}  Qxe7 {[%clk 0:02:28]} 18. Bxd5 {[%clk 0:01:48]}  Bxd5 {[%clk 0:02:28]} 19. Nb6 {[%clk 0:01:48]}  Rad8 {[%clk 0:02:28]} 20. Nxd5 {[%clk 0:01:47]}  Rxd5 {[%clk 0:02:28]} 21. Qxa6 {[%clk 0:01:46]}  Rfd8 {[%clk 0:02:27]} 22. g3 {[%clk 0:01:34]}  Qc5 {[%clk 0:02:26]} 23. Re2 {[%clk 0:01:32]}  Rxe5 {[%clk 0:02:24]} 24. Rxe5 {[%clk 0:01:29]}  Qxe5 {[%clk 0:02:24]} 25. Qb6 {[%clk 0:01:28]}  Rd4 {[%clk 0:02:09]} 26. a4 {[%clk 0:01:20]}  bxa3 {[%clk 0:02:07]} 27. bxa3 {[%clk 0:01:13]}  Rd6 {[%clk 0:02:06]} 28. Qb8+ {[%clk 0:01:08]}  Kh7 {[%clk 0:02:06]} 29. Qb1+ {[%clk 0:01:05]}  g6 {[%clk 0:02:04]} 30. a4 {[%clk 0:01:05]}  Rd2 {[%clk 0:02:02]} 31. Qe1 {[%clk 0:00:59]}  Qd4 {[%clk 0:02:01]} 32. a5 {[%clk 0:00:58]}  Rxf2 {[%clk 0:02:01]} 33. Qxf2 {[%clk 0:00:44]}  Qxa1+ {[%clk 0:02:01]} 34. Kg2 {[%clk 0:00:45]}  Kg7 {[%clk 0:01:53]} 35. Qb6 {[%clk 0:00:33]}  Qa2+ {[%clk 0:01:53]} 36. Kf3 {[%clk 0:00:32]}  Qxh2 {[%clk 0:01:51]} 37. a6 {[%clk 0:00:31]}  Qh1+ {[%clk 0:01:51]} 38. Kf2 {[%clk 0:00:28]}  Qc1 {[%clk 0:01:43]} 39. a7 {[%clk 0:00:22]}  Qd2+ {[%clk 0:01:44]} 40. Kf3 {[%clk 0:00:20]}  Qd5+ {[%clk 0:01:40]} 41. Ke3 {[%clk 0:00:19]}  Qe5+ {[%clk 0:01:40]} 42. Kd3 {[%clk 0:00:18]}  Qxg3+ {[%clk 0:01:40]} 43. Kc4 {[%clk 0:00:15]}  Qa3 {[%clk 0:01:33]} 44. Qd4+ {[%clk 0:00:10]}  Kh7 {[%clk 0:01:33]} 45. Qc5 {[%clk 0:00:08]}  Qa6+ {[%clk 0:01:31]} 46. Kb4 {[%clk 0:00:07]}  Qb7+ {[%clk 0:01:30]} 47. Ka5 {[%clk 0:00:06]}  h5 {[%clk 0:01:29]} 48. Qb6 {[%clk 0:00:06]}  Qd5+ {[%clk 0:01:28]} 49. Ka6 {[%clk 0:00:06]}  Qa2+ {[%clk 0:01:28]} 50. Kb7 {[%clk 0:00:05]}  Qd5+ {[%clk 0:01:29]} 51. Kb8 {[%clk 0:00:04]}  Qe5+ {[%clk 0:01:28]} 52. Kc8 {[%clk 0:00:01]}  Qc3+ {[%clk 0:01:25]} 53. Kd7 {[%clk 0:00:01]}  Qd3+ {[%clk 0:01:24]} 54. Ke8 {[%clk 0:00:02]}  Qc3 {[%clk 0:01:12]} 55. a8=Q {[%clk 0:00:01]}  Qh8+ {[%clk 0:01:12]} 0-1


[Site "https://www.chess.com"]

[Event "Titled Tuesday Blitz February 28 Early 2023"]
[White "Tarnowska, Aleksandra"]
[Black "Seifert, Henryk"]
[WhiteFideId "1180967"]
[BlackFideId "1100963"]
[WhiteElo "1776"]
[BlackElo "2071"]
[Result "1-0"]
[Round "10"]
[TimeControl "180+2"]
[Date "2023.02.28"]
[WhiteClock "0:00:04"]
[BlackClock "0:00:01"]

1. e4 {[%clk 0:03:00]}  e6 {[%clk 0:02:57]} 2. d4 {[%clk 0:03:00]}  d5 {[%clk 0:02:57]} 3. Nd2 {[%clk 0:03:01]}  Nf6 {[%clk 0:02:55]} 4. e5 {[%clk 0:03:01]}  Nfd7 {[%clk 0:02:55]} 5. Bd3 {[%clk 0:03:02]}  c5 {[%clk 0:02:55]} 6. c3 {[%clk 0:03:02]}  Nc6 {[%clk 0:02:55]} 7. Ne2 {[%clk 0:03:03]}  Qb6 {[%clk 0:02:54]} 8. Nf3 {[%clk 0:03:03]}  cxd4 {[%clk 0:02:53]} 9. cxd4 {[%clk 0:03:04]}  f6 {[%clk 0:02:53]} 10. exf6 {[%clk 0:03:04]}  Nxf6 {[%clk 0:02:53]} 11. O-O {[%clk 0:03:05]}  Bd6 {[%clk 0:02:53]} 12. Bg5 {[%clk 0:03:04]}  O-O {[%clk 0:02:49]} 13. Bh4 {[%clk 0:03:04]}  Qxb2 {[%clk 0:02:43]} 14. Bg3 {[%clk 0:02:25]}  Bxg3 {[%clk 0:02:41]} 15. hxg3 {[%clk 0:02:22]}  Qa3 {[%clk 0:02:19]} 16. Nf4 {[%clk 0:01:38]}  Bd7 {[%clk 0:02:08]} 17. Ne5 {[%clk 0:01:12]}  Qd6 {[%clk 0:01:57]} 18. Nh5 {[%clk 0:00:40]}  Nxe5 {[%clk 0:01:42]} 19. dxe5 {[%clk 0:00:20]}  Qxe5 {[%clk 0:01:40]} 20. Nf4 {[%clk 0:00:15]}  Qd6 {[%clk 0:01:25]} 21. Rb1 {[%clk 0:00:13]}  b6 {[%clk 0:01:25]} 22. Bc2 {[%clk 0:00:10]}  e5 {[%clk 0:01:15]} 23. Nd3 {[%clk 0:00:09]}  Bc6 {[%clk 0:00:51]} 24. Nb4 {[%clk 0:00:08]}  Bb7 {[%clk 0:00:45]} 25. Bb3 {[%clk 0:00:08]}  Rad8 {[%clk 0:00:44]} 26. Re1 {[%clk 0:00:06]}  a5 {[%clk 0:00:42]} 27. Nc2 {[%clk 0:00:06]}  Kh8 {[%clk 0:00:39]} 28. Ba4 {[%clk 0:00:06]}  d4 {[%clk 0:00:31]} 29. f3 {[%clk 0:00:06]}  Nd5 {[%clk 0:00:27]} 30. Bb5 {[%clk 0:00:05]}  Nc3 {[%clk 0:00:26]} 31. Qd2 {[%clk 0:00:05]}  Nxb1 {[%clk 0:00:25]} 32. Rxb1 {[%clk 0:00:06]}  Rc8 {[%clk 0:00:24]} 33. Bd3 {[%clk 0:00:06]}  Qc5 {[%clk 0:00:23]} 34. Ne1 {[%clk 0:00:06]}  Qc3 {[%clk 0:00:21]} 35. Qg5 {[%clk 0:00:05]}  Qc7 {[%clk 0:00:12]} 36. Qh4 {[%clk 0:00:05]}  h6 {[%clk 0:00:12]} 37. Qh5 {[%clk 0:00:05]}  Rce8 {[%clk 0:00:11]} 38. Qg6 {[%clk 0:00:06]}  e4 {[%clk 0:00:09]} 39. fxe4 {[%clk 0:00:05]}  Qe5 {[%clk 0:00:09]} 40. Nf3 {[%clk 0:00:04]}  Qe6 {[%clk 0:00:06]} 41. Qh5 {[%clk 0:00:03]}  Rf6 {[%clk 0:00:04]} 42. Rc1 {[%clk 0:00:03]}  Ref8 {[%clk 0:00:04]} 43. Rc7 {[%clk 0:00:03]}  R6f7 {[%clk 0:00:04]} 44. Rc4 {[%clk 0:00:02]}  Rf6 {[%clk 0:00:03]} 45. Rxd4 {[%clk 0:00:03]}  Qe7 {[%clk 0:00:02]} 46. Rc4 {[%clk 0:00:03]}  Rd6 {[%clk 0:00:02]} 47. Rd4 {[%clk 0:00:02]}  Rxd4 {[%clk 0:00:01]} 48. Nxd4 {[%clk 0:00:03]}  Qc5 {[%clk 0:00:01]} 49. Qh4 {[%clk 0:00:03]}  Qxd4+ {[%clk 0:00:01]} 50. Kh2 {[%clk 0:00:04]}  Qf6 {[%clk 0:00:01]} 51. Qg4 {[%clk 0:00:04]}  Qg5 {[%clk 0:00:01]} 52. Qh3 {[%clk 0:00:04]}  Rf6 {[%clk 0:00:01]} 53. e5 {[%clk 0:00:04]} 1-0


[Site "https://www.chess.com"]

[Event "Titled Tuesday Blitz February 28 Early 2023"]
[White "Larina, Maria"]
[Black "Nery Junior, Jose Antonio"]
[WhiteFideId "24113182"]
[BlackFideId "2104822"]
[WhiteElo "1848"]
[BlackElo "2197"]
[Result "0-1"]
[Round "10"]
[TimeControl "180+2"]
[Date "2023.02.28"]
[WhiteClock "0:00:08"]
[BlackClock "0:00:17"]

1. e4 {[%clk 0:03:00]}  c5 {[%clk 0:02:59]} 2. Nc3 {[%clk 0:03:00]}  e6 {[%clk 0:02:59]} 3. Nf3 {[%clk 0:02:59]}  a6 {[%clk 0:02:59]} 4. d4 {[%clk 0:02:59]}  cxd4 {[%clk 0:03:00]} 5. Nxd4 {[%clk 0:03:00]}  Qc7 {[%clk 0:03:01]} 6. g3 {[%clk 0:03:00]}  Nf6 {[%clk 0:03:00]} 7. Bg2 {[%clk 0:03:00]}  Nc6 {[%clk 0:02:59]} 8. O-O {[%clk 0:02:55]}  b5 {[%clk 0:02:58]} 9. Nxc6 {[%clk 0:02:47]}  dxc6 {[%clk 0:02:59]} 10. e5 {[%clk 0:02:46]}  Nd5 {[%clk 0:02:57]} 11. Ne4 {[%clk 0:02:05]}  Be7 {[%clk 0:02:49]} 12. Qg4 {[%clk 0:01:49]}  O-O {[%clk 0:02:02]} 13. f4 {[%clk 0:01:12]}  Qb6+ {[%clk 0:01:55]} 14. Kh1 {[%clk 0:01:12]}  Ne3 {[%clk 0:01:56]} 15. Bxe3 {[%clk 0:01:08]}  Qxe3 {[%clk 0:01:57]} 16. Nf6+ {[%clk 0:01:05]}  Kh8 {[%clk 0:01:47]} 17. Nh5 {[%clk 0:01:02]}  Rg8 {[%clk 0:01:42]} 18. Bxc6 {[%clk 0:00:58]}  Ra7 {[%clk 0:01:35]} 19. Rae1 {[%clk 0:00:48]}  Qc5 {[%clk 0:01:34]} 20. Be4 {[%clk 0:00:46]}  Bb7 {[%clk 0:01:33]} 21. Qf3 {[%clk 0:00:36]}  Bxe4 {[%clk 0:01:31]} 22. Qxe4 {[%clk 0:00:36]}  Rc7 {[%clk 0:01:23]} 23. c3 {[%clk 0:00:36]}  Rd8 {[%clk 0:01:16]} 24. Rd1 {[%clk 0:00:35]}  Qc6 {[%clk 0:01:12]} 25. Qxc6 {[%clk 0:00:34]}  Rxc6 {[%clk 0:01:12]} 26. Rxd8+ {[%clk 0:00:34]}  Bxd8 {[%clk 0:01:13]} 27. Rd1 {[%clk 0:00:35]}  Bb6 {[%clk 0:01:05]} 28. Rd6 {[%clk 0:00:24]}  Rxd6 {[%clk 0:00:58]} 29. exd6 {[%clk 0:00:24]}  Kg8 {[%clk 0:00:59]} 30. g4 {[%clk 0:00:20]}  Kf8 {[%clk 0:00:58]} 31. Ng3 {[%clk 0:00:20]}  Ke8 {[%clk 0:00:56]} 32. Ne4 {[%clk 0:00:20]}  Kd7 {[%clk 0:00:55]} 33. f5 {[%clk 0:00:19]}  Be3 {[%clk 0:00:51]} 34. Kg2 {[%clk 0:00:18]}  g6 {[%clk 0:00:48]} 35. fxg6 {[%clk 0:00:18]}  hxg6 {[%clk 0:00:46]} 36. Kf3 {[%clk 0:00:18]}  Bc1 {[%clk 0:00:46]} 37. Nc5+ {[%clk 0:00:18]}  Kxd6 {[%clk 0:00:45]} 38. Nxa6 {[%clk 0:00:18]}  Bxb2 {[%clk 0:00:45]} 39. h4 {[%clk 0:00:18]}  Bxc3 {[%clk 0:00:45]} 40. h5 {[%clk 0:00:17]}  Bd2 {[%clk 0:00:42]} 41. hxg6 {[%clk 0:00:15]}  fxg6 {[%clk 0:00:43]} 42. a3 {[%clk 0:00:14]}  Ba5 {[%clk 0:00:33]} 43. Ke4 {[%clk 0:00:14]}  g5 {[%clk 0:00:30]} 44. Nb8 {[%clk 0:00:13]}  Bc3 {[%clk 0:00:25]} 45. Na6 {[%clk 0:00:12]}  Bb2 {[%clk 0:00:25]} 46. Nb4 {[%clk 0:00:10]}  Bxa3 {[%clk 0:00:25]} 47. Nd3 {[%clk 0:00:11]}  Bc5 {[%clk 0:00:24]} 48. Nb2 {[%clk 0:00:10]}  e5 {[%clk 0:00:22]} 49. Nd3 {[%clk 0:00:10]}  Bd4 {[%clk 0:00:22]} 50. Nb4 {[%clk 0:00:10]}  Kc5 {[%clk 0:00:21]} 51. Nd3+ {[%clk 0:00:10]}  Kc4 {[%clk 0:00:21]} 52. Ne1 {[%clk 0:00:08]}  b4 {[%clk 0:00:22]} 53. Nc2 {[%clk 0:00:08]}  b3 {[%clk 0:00:22]} 54. Na3+ {[%clk 0:00:09]}  Kb4 {[%clk 0:00:21]} 55. Nb1 {[%clk 0:00:09]}  Kc4 {[%clk 0:00:22]} 56. Na3+ {[%clk 0:00:08]}  Kc3 {[%clk 0:00:22]} 57. Nb1+ {[%clk 0:00:08]}  Kc2 {[%clk 0:00:20]} 58. Na3+ {[%clk 0:00:09]}  Kc1 {[%clk 0:00:21]} 59. Kf5 {[%clk 0:00:08]}  b2 {[%clk 0:00:19]} 60. Kxg5 {[%clk 0:00:08]}  Bc5 {[%clk 0:00:19]} 61. Nb1 {[%clk 0:00:07]}  Kxb1 {[%clk 0:00:18]} 62. Kf5 {[%clk 0:00:08]}  Kc2 {[%clk 0:00:17]} 63. g5 {[%clk 0:00:08]}  b1=Q {[%clk 0:00:17]} 0-1


[Site "https://www.chess.com"]